fUSD/lending_fUSD_20240225
["ID","MTS","AMOUNT","RATE_DAILY","PERIOD"]
[315142777,1708888244753,-504.51090166,0.00023985,2]
[315142778,1708888244762,-500.0,0.00023985,2]
[315142779,1708888244772,-708.07,0.00023985,2]
[315142780,1708888244781,-503.61854979,0.00023985,2]
[315142781,1708888244791,-868.38,0.00023985,2]
[315142782,1708888244800,-500.0,0.00023985,2]
[315142783,1708888244809,-500.0,0.00023985,2]
[315142784,1708888244819,-2420.72,0.00023985,2]
[315142785,1708888244829,-182.7392506,0.00023985,2]
[315142786,1708888244838,-500.0,0.00023985,2]
[315142787,1708888244847,-500.0,0.00023985,2]
[315142788,1708888244857,-518.13,0.00023985,2]
[315142789,1708888244866,-500.0,0.00023985,2]
[315142790,1708888244876,-500.0,0.00023985,2]
[315142791,1708888244885,-500.0,0.00023985,2]
[315142792,1708888244895,-882.06,0.00023985,2]
[315142793,1708888244908,-500.0,0.00023985,2]
[315142794,1708888244918,-500.0,0.00023985,2]
[315142795,1708888244927,-500.0,0.00023985,2]
[315142796,1708888244936,-500.0,0.00023985,2]
[315142797,1708888244946,-500.0,0.00023985,2]
[315142798,1708888244956,-500.0,0.00023985,2]
[315142799,1708888244965,-3533.16,0.00023985,2]
[315142800,1708888244975,-496.29613328,0.00023985,2]
[315142801,1708888244985,-500.0,0.00023985,2]
[315142802,1708888244995,-500.0,0.00023985,2]
[315142803,1708888245005,-500.0,0.00023985,2]
[315142804,1708888245014,-500.0,0.00023985,2]
[315142805,1708888245023,-334.24106788,0.00023985,2]
[315142806,1708888245033,-500.0,0.00023985,2]
[315142807,1708888245043,-508.07,0.00023985,2]
[315142808,1708888245053,-500.0,0.00023985,2]
[315142809,1708888245063,-500.0,0.00023985,2]
[315142810,1708888245073,-500.0,0.00023985,2]
[315142811,1708888245083,-604.78575951,0.00023985,2]
[315142812,1708888245093,-522.06398112,0.00023985,2]
[315142813,1708888245102,-500.0,0.00023985,2]
[315142814,1708888245111,-500.0,0.00023985,2]
[315142815,1708888245121,-500.0,0.00023985,2]
[315142816,1708888245130,-500.0,0.00023985,2]
[315142817,1708888245140,-500.0,0.00023985,2]
[315142818,1708888245149,-500.0,0.00023985,2]
[315142819,1708888245159,-836.2,0.00023985,2]
[315142820,1708888245169,-500.0,0.00023985,2]
[315142821,1708888245178,-516.84931453,0.00023985,2]
[315142822,1708888245189,-500.0,0.00023985,2]
[315142823,1708888245199,-598.24152515,0.00023985,2]
[315142824,1708888245208,-500.0,0.00023985,2]
[315142825,1708888245218,-500.0,0.00023985,2]
[315142826,1708888245228,-500.0,0.00023985,2]
[315142827,1708888245238,-500.0,0.00023985,2]
[315142828,1708888245248,-500.0,0.00023985,2]
[315142829,1708888245257,-500.0,0.00023985,2]
[315142830,1708888245267,-485.28057064,0.00023985,2]
[315142831,1708888245276,-4070.2,0.00023985,2]
[315142832,1708888245286,-500.0,0.00023985,2]
[315142833,1708888245295,-500.0,0.00023985,2]
[315142834,1708888245304,-500.0,0.00023985,2]
[315142835,1708888245313,-500.0,0.00023985,2]
[315142836,1708888245322,-500.0,0.00023985,2]
[315142837,1708888245332,-507.24458301,0.00023985,2]
[315142838,1708888245341,-500.0,0.00023985,2]
[315142839,1708888245350,-500.0,0.00023985,2]
[315142840,1708888245359,-500.0,0.00023985,2]
[315142841,1708888245369,-505.56452213,0.00023985,2]
[315142842,1708888245379,-640.94917376,0.00023985,2]
[315142843,1708888245388,-642.23,0.00023985,2]
[315142844,1708888245398,-500.0,0.00023985,2]
[315142845,1708888245407,-500.0,0.00023985,2]
[315142846,1708888245417,-500.0,0.00023985,2]
[315142847,1708888245426,-524.22645437,0.00023985,2]
[315142848,1708888245436,-500.0,0.00023985,2]
[315142849,1708888245445,-536.80574867,0.00023985,2]
[315142850,1708888245455,-500.0,0.00023985,2]
[315142851,1708888245465,-500.0,0.00023985,2]
[315142852,1708888245474,-674.81,0.00023985,2]
[315142853,1708888245484,-511.56560665,0.00023985,2]
[315142854,1708888245493,-500.0,0.00023985,2]
[315142855,1708888245503,-2403.51,0.00023985,2]
[315142856,1708888245513,-500.0,0.00023985,2]
[315142857,1708888245523,-500.0,0.00023985,2]
[315142858,1708888245533,-500.0,0.00023985,2]
[315142859,1708888245542,-500.0,0.00023985,2]
[315142860,1708888245552,-500.0,0.00023986,2]
[315142861,1708888245561,-514.08098621,0.00023986,2]
[315142862,1708888245571,-500.0,0.00023986,2]
[315142863,1708888245580,-500.0,0.00023986,2]
[315142864,1708888245589,-500.0,0.00023986,2]
[315142865,1708888245599,-500.0,0.00023986,2]
[315142866,1708888245608,-539.57037904,0.00023986,2]
[315142867,1708888245618,-500.0,0.00023986,2]
[315142868,1708888245628,-500.0,0.00023986,2]
[315142869,1708888245637,-500.0,0.00023986,2]
[315142870,1708888245647,-302.57853885,0.00023986,2]
[315142871,1708888245656,-500.0,0.00023986,2]
[315142872,1708888245666,-500.0,0.00023986,2]
[315142873,1708888245675,-500.0,0.00023986,2]
[315142874,1708888245685,-500.0,0.00023986,2]
[315142875,1708888245694,-500.0,0.00023986,2]
[315142876,1708888245704,-564.9988682,0.00023986,2]
[315142877,1708888245713,-514.22822762,0.00023986,2]
[315142878,1708888245722,-516.16784189,0.00023986,2]
[315142879,1708888245732,-500.0,0.00023986,2]
[315142880,1708888245741,-500.0,0.00023986,2]
[315142881,1708888245751,-500.0,0.00023986,2]
[315142882,1708888245760,-507.43951621,0.00023986,2]
[315142883,1708888245770,-500.0,0.00023986,2]
[315142884,1708888245779,-500.0,0.00023986,2]
[315142885,1708888245788,-500.0,0.00023986,2]
[315142886,1708888245798,-513.1717839,0.00023986,2]
[315142887,1708888245808,-518.5996493,0.00023986,2]
[315142888,1708888245818,-500.0,0.00023986,2]
[315142889,1708888245829,-522.76736348,0.00023986,2]
[315142890,1708888245839,-516.18658695,0.00023986,2]
[315142891,1708888245850,-508.64224951,0.00023986,2]
[315142892,1708888245861,-500.0,0.00023986,2]
[315142893,1708888245872,-500.0,0.00023986,2]
[315142894,1708888245883,-500.0,0.00023986,2]
[315142895,1708888245894,-154.41,0.00023986,2]
[315142896,1708888245906,-511.38525988,0.00023986,2]
[315142897,1708888245918,-500.0,0.00023986,2]
[315142898,1708888245929,-500.0,0.00023986,2]
[315142899,1708888245940,-500.0,0.00023986,2]
[315142901,1708888245951,-500.0,0.00023986,2]
[315142902,1708888245961,-500.0,0.00023986,2]
[315142904,1708888245971,-514.60261659,0.00023986,2]
[315142906,1708888245984,-515.64322422,0.00023986,2]
[315142908,1708888245994,-500.0,0.00023986,2]
[315142910,1708888246007,-511.73866458,0.00023986,2]
[315142912,1708888246017,-500.0,0.00023986,2]
[315142914,1708888246026,-502.0884763,0.00023986,2]
[315142916,1708888246037,-317.71434663,0.00023986,2]
[315142918,1708888246046,-500.0,0.00023986,2]
[315142921,1708888246056,-500.0,0.00023986,2]
[315142923,1708888246066,-509.25307484,0.00023986,2]
[315142925,1708888246078,-500.0,0.00023986,2]
[315142927,1708888246088,-506.43841514,0.00023986,2]
[315142929,1708888246098,-500.0,0.00023986,2]
[315142931,1708888246107,-500.0,0.00023986,2]
[315142933,1708888246116,-500.0,0.00023986,2]
[315142935,1708888246126,-503.72071067,0.00023986,2]
[315142937,1708888246136,-503.43403529,0.00023986,2]
[315142938,1708888246145,-500.0,0.00023986,2]
[315142939,1708888246155,-500.0,0.00023986,2]
[315142940,1708888246164,-530.7777088,0.00023986,2]
[315142941,1708888246174,-509.02163209,0.00023986,2]
[315142942,1708888246184,-500.0,0.00023986,2]
[315142943,1708888246195,-500.0,0.00023986,2]
[315142944,1708888246205,-514.13299626,0.00023986,2]
[315142945,1708888246216,-511.33853374,0.00023986,2]
[315142946,1708888246226,-500.0,0.00023986,2]
[315142947,1708888246235,-500.0,0.00023986,2]
[315142948,1708888246245,-500.0,0.00023986,2]
[315142949,1708888246258,-500.79862783,0.00023986,2]
[315142950,1708888246267,-500.0,0.00023986,2]
[315142951,1708888246276,-514.14808592,0.00023986,2]
[315142952,1708888246286,-500.0,0.00023986,2]
[315142953,1708888246295,-500.0,0.00023986,2]
[315142954,1708888246304,-500.0,0.00023986,2]
[315142955,1708888246313,-500.0,0.00023986,2]
[315142956,1708888246323,-500.0,0.00023986,2]
[315142957,1708888246332,-500.0,0.00023986,2]
[315142958,1708888246342,-500.0,0.00023986,2]
[315142959,1708888246353,-500.0,0.00023986,2]
[315142960,1708888246362,-500.0,0.00023986,2]
[315142961,1708888246371,-500.0,0.00023986,2]
[315142962,1708888246380,-500.0,0.00023986,2]
[315142963,1708888246390,-500.0,0.00023986,2]
[315142964,1708888246399,-506.50534,0.00023986,2]
[315142965,1708888246409,-500.0,0.00023986,2]
[315142966,1708888246418,-500.0,0.00023986,2]
[315142967,1708888246427,-500.0,0.00023986,2]
[315142968,1708888246436,-538.05992471,0.00023986,2]
[315142969,1708888246446,-502.79236683,0.00023986,2]
[315142970,1708888246455,-500.0,0.00023986,2]
[315142971,1708888246520,-500.0,0.00023986,2]
[315142972,1708888246530,-500.0,0.00023986,2]
[315142973,1708888246539,-500.0,0.00023986,2]
[315142974,1708888246548,-500.0,0.00023986,2]
[315142975,1708888246557,-525.88007113,0.00023986,2]
[315142976,1708888246566,-500.0,0.00023986,2]
[315142977,1708888246576,-500.0,0.00023986,2]
[315142978,1708888246585,-500.0,0.00023986,2]
[315142979,1708888246594,-504.78627532,0.00023986,2]
[315142980,1708888246603,-504.6981303,0.00023986,2]
[315142981,1708888246612,-500.0,0.00023986,2]
[315142982,1708888246621,-507.64358966,0.00023986,2]
[315142983,1708888246630,-500.0,0.00023986,2]
[315142984,1708888246640,-514.66303577,0.00023986,2]
[315142985,1708888246649,-500.0,0.00023986,2]
[315142986,1708888246658,-500.0,0.00023986,2]
[315142987,1708888246667,-500.0,0.00023986,2]
[315142988,1708888246676,-500.0,0.00023986,2]
[315142989,1708888246686,-500.0,0.00023986,2]
[315142990,1708888246695,-508.15921644,0.00023986,2]
[315142991,1708888246704,-500.0,0.00023986,2]
[315142992,1708888246713,-500.0,0.00023986,2]
[315142993,1708888246722,-515.31768622,0.00023986,2]
[315142994,1708888246731,-500.0,0.00023986,2]
[315142995,1708888246740,-500.0,0.00023986,2]
[315142996,1708888246749,-500.0,0.00023986,2]
[315142997,1708888246760,-500.0,0.00023986,2]
[315142998,1708888246770,-500.0,0.00023986,2]
[315142999,1708888246779,-504.95370527,0.00023986,2]
[315143000,1708888246788,-549.45457689,0.00023986,2]
[315143001,1708888246797,-500.0,0.00023986,2]
[315143002,1708888246806,-500.0,0.00023986,2]
[315143003,1708888246815,-500.0,0.00023986,2]
[315143004,1708888246824,-500.0,0.00023986,2]
[315143005,1708888246833,-500.0,0.00023986,2]
[315143006,1708888246842,-399.18441249,0.00023986,2]
[315143007,1708888246851,-500.0,0.00023986,2]
[315143008,1708888246860,-981.67,0.00023986,2]
[315143009,1708888246869,-500.0,0.00023986,2]
[315143010,1708888246878,-505.32088631,0.00023986,2]
[315143011,1708888246888,-500.0,0.00023986,2]
[315143012,1708888246897,-506.68974852,0.00023986,2]
[315143013,1708888246910,-536.32711906,0.00023986,2]
[315143014,1708888246919,-500.0,0.00023986,2]
[315143015,1708888246928,-529.3263394,0.00023986,2]
[315143016,1708888246938,-500.0,0.00023986,2]
[315143017,1708888246947,-500.0,0.00023986,2]
[315143018,1708888246957,-500.0,0.00023986,2]
[315143019,1708888246966,-500.0,0.00023986,2]
[315143020,1708888246975,-500.0,0.00023986,2]
[315143021,1708888246985,-500.0,0.00023986,2]
[315143022,1708888246997,-500.0,0.00023986,2]
[315143023,1708888247007,-503.14376322,0.00023986,2]
[315143024,1708888247018,-500.0,0.00023986,2]
[315143025,1708888247028,-500.0,0.00023986,2]
[315143026,1708888247038,-500.0,0.00023986,2]
[315143027,1708888247047,-500.0,0.00023986,2]
[315143028,1708888247056,-500.0,0.00023986,2]
[315143029,1708888247065,-935.71,0.00023986,2]
[315143030,1708888247075,-500.0,0.00023986,2]
[315143031,1708888247084,-507.10065203,0.00023986,2]
[315143032,1708888247094,-500.0,0.00023986,2]
[315143033,1708888247104,-500.0,0.00023986,2]
[315143034,1708888247113,-500.0,0.00023986,2]
[315143035,1708888247122,-500.0,0.00023986,2]
[315143036,1708888247132,-500.0,0.00023986,2]
[315143037,1708888247141,-500.0,0.00023986,2]
[315143038,1708888247150,-520.44516801,0.00023986,2]
[315143039,1708888247160,-500.0,0.00023986,2]
[315143040,1708888247169,-500.0,0.00023986,2]
[315143041,1708888247178,-500.0,0.00023986,2]
[315143042,1708888247187,-500.0,0.00023986,2]
[315143043,1708888247197,-763.09,0.00023986,2]
[315143044,1708888247206,-500.0,0.00023986,2]
[315143045,1708888247215,-500.0,0.00023986,2]
[315143046,1708888247224,-502.68930702,0.00023986,2]
[315143047,1708888247233,-351.6420878,0.00023986,2]
[315143048,1708888247243,-500.0,0.00023986,2]
[315143049,1708888247252,-521.44364514,0.00023986,2]
[315143050,1708888247262,-500.0,0.00023986,2]
[315143051,1708888247271,-716.65,0.00023986,2]
[315143052,1708888247280,-500.0,0.00023986,2]
[315143053,1708888247290,-500.0,0.00023986,2]
[315143054,1708888247299,-504.64929727,0.00023986,2]
[315143055,1708888247307,-762.73,0.00023986,2]
[315143056,1708888247316,-500.0,0.00023986,2]
[315143057,1708888247327,-506.65683895,0.00023986,2]
[315143058,1708888247338,-645.92,0.00023986,2]
[315143059,1708888247347,-507.62249249,0.00023986,2]
[315143060,1708888247357,-503.63023564,0.00023986,2]
[315143061,1708888247367,-500.0,0.00023986,2]
[315143062,1708888247376,-508.76,0.00023986,2]
[315143063,1708888247386,-500.0,0.00023986,2]
[315143064,1708888247395,-500.0,0.00023986,2]
[315143065,1708888247404,-504.35550974,0.00023986,2]
[315143066,1708888247413,-1000.0,0.00023986,2]
[315143067,1708888247423,-505.60982298,0.00023986,2]
[315143068,1708888247432,-500.0,0.00023986,2]
[315143069,1708888247441,-500.0,0.00023986,2]
[315143070,1708888247450,-500.0,0.00023986,2]
[315143071,1708888247459,-500.0,0.00023986,2]
[315143072,1708888247468,-500.0,0.00023986,2]
[315143073,1708888247478,-500.0,0.00023986,2]
[315143074,1708888247487,-500.0,0.00023986,2]
[315143075,1708888247497,-500.0,0.00023986,2]
[315143076,1708888247507,-500.0,0.00023986,2]
[315143077,1708888247515,-500.0,0.00023986,2]
[315143078,1708888247524,-500.0,0.00023986,2]
[315143079,1708888247534,-500.0,0.00023986,2]
[315143080,1708888247543,-500.0,0.00023986,2]
[315143081,1708888247553,-500.0,0.00023986,2]
[315143082,1708888247562,-509.57356536,0.00023986,2]
[315143083,1708888247571,-500.0,0.00023986,2]
[315143084,1708888247580,-500.0,0.00023986,2]
[315143085,1708888247590,-500.0,0.00023986,2]
[315143086,1708888247599,-506.41232804,0.00023986,2]
[315143087,1708888247608,-500.0,0.00023986,2]
[315143088,1708888247617,-500.0,0.00023986,2]
[315143089,1708888247627,-500.0,0.00023986,2]
[315143090,1708888247636,-500.0,0.00023986,2]
[315143091,1708888247645,-505.64688542,0.00023986,2]
[315143092,1708888247655,-500.0,0.00023986,2]
[315143093,1708888247664,-500.0,0.00023986,2]
[315143094,1708888247673,-500.0,0.00023986,2]
[315143095,1708888247683,-500.0,0.00023986,2]
[315143096,1708888247692,-500.0,0.00023986,2]
[315143097,1708888247701,-543.77,0.00023986,2]
[315143098,1708888247711,-500.0,0.00023986,2]
[315143099,1708888247720,-500.0,0.00023986,2]
[315143100,1708888247729,-508.77075137,0.00023986,2]
[315143101,1708888247738,-500.0,0.00023986,2]
[315143102,1708888247747,-506.58686403,0.00023986,2]
[315143103,1708888247757,-706.07,0.00023986,2]
[315143104,1708888247766,-508.72115496,0.00023986,2]
[315143105,1708888247775,-500.0,0.00023986,2]
[315143106,1708888247784,-509.64811312,0.00023986,2]
[315143107,1708888247793,-523.07636201,0.00023986,2]
[315143108,1708888247802,-516.25373104,0.00023986,2]
[315143109,1708888247811,-511.88351743,0.00023986,2]
[315143110,1708888247821,-500.0,0.00023986,2]
[315143111,1708888247830,-500.0,0.00023986,2]
[315143112,1708888247839,-508.15803597,0.00023986,2]
[315143113,1708888247848,-498.2994,0.00023986,2]
[315143114,1708888247857,-500.0,0.00023986,2]
[315143115,1708888247866,-500.0,0.00023986,2]
[315143116,1708888247875,-517.71588579,0.00023986,2]
[315143117,1708888247884,-449.65175841,0.00023986,2]
[315143118,1708888247893,-506.08982474,0.00023986,2]
[315143119,1708888247903,-508.52652129,0.00023986,2]
[315143120,1708888247917,-500.0,0.00023986,2]
[315143121,1708888247926,-904.49,0.00023986,2]
[315143122,1708888247935,-500.0,0.00023986,2]
[315143123,1708888247945,-500.0,0.00023986,2]
[315143124,1708888247956,-500.0,0.00023986,2]
[315143125,1708888247965,-500.0,0.00023986,2]
[315143126,1708888247974,-514.97003977,0.00023986,2]
[315143127,1708888247983,-500.0,0.00023986,2]
[315143128,1708888247994,-509.68257033,0.00023986,2]
[315143129,1708888248003,-504.08658316,0.00023986,2]
[315143130,1708888248013,-500.0,0.00023986,2]
[315143131,1708888248022,-500.0,0.00023986,2]
[315143132,1708888248031,-500.0,0.00023986,2]
[315143133,1708888248040,-500.0,0.00023986,2]
[315143134,1708888248049,-500.0,0.00023986,2]
[315143135,1708888248058,-514.56863686,0.00023986,2]
[315143136,1708888248067,-500.0,0.00023986,2]
[315143137,1708888248076,-500.0,0.00023986,2]
[315143138,1708888248086,-505.21488724,0.00023986,2]
[315143139,1708888248095,-500.0,0.00023986,2]
[315143140,1708888248104,-500.0,0.00023986,2]
[315143141,1708888248113,-500.0,0.00023986,2]
[315143142,1708888248122,-500.0,0.00023986,2]
[315143143,1708888248131,-507.69443752,0.00023986,2]
[315143144,1708888248140,-500.0,0.00023986,2]
[315143145,1708888248149,-500.0,0.00023986,2]
[315143146,1708888248158,-500.0,0.00023986,2]
[315143147,1708888248167,-508.3253957,0.00023986,2]
[315143148,1708888248176,-500.0,0.00023986,2]
[315143149,1708888248185,-500.0,0.00023986,2]
[315143150,1708888248194,-500.0,0.00023986,2]
[315143151,1708888248203,-500.0,0.00023986,2]
[315143152,1708888248213,-500.0,0.00023986,2]
[315143153,1708888248222,-500.0,0.00023986,2]
[315143154,1708888248231,-500.0,0.00023986,2]
[315143155,1708888248240,-500.0,0.00023986,2]
[315143156,1708888248249,-500.0,0.00023986,2]
[315143157,1708888248259,-500.0,0.00023986,2]
[315143158,1708888248268,-515.1124201,0.00023986,2]
[315143159,1708888248278,-500.0,0.00023986,2]
[315143160,1708888248287,-500.0,0.00023986,2]
[315143161,1708888248296,-780.15,0.00023986,2]
[315143162,1708888248306,-500.0,0.00023986,2]
[315143163,1708888248315,-500.0,0.00023986,2]
[315143164,1708888248324,-501.59140241,0.00023986,2]
[315143165,1708888248335,-500.0,0.00023986,2]
[315143166,1708888248344,-503.01197665,0.00023986,2]
[315143167,1708888248359,-500.0,0.00023986,2]
[315143168,1708888248368,-500.0,0.00023986,2]
[315143169,1708888248378,-500.0,0.00023986,2]
[315143170,1708888248387,-601.88796997,0.00023986,2]
[315143171,1708888248397,-500.0,0.00023986,2]
[315143172,1708888248406,-500.0,0.00023986,2]
[315143173,1708888248416,-500.0,0.00023986,2]
[315143174,1708888248425,-511.79292825,0.00023986,2]
[315143175,1708888248434,-500.0,0.00023986,2]
[315143176,1708888248443,-500.0,0.00023986,2]
[315143177,1708888248453,-501.19188943,0.00023986,2]
[315143178,1708888248462,-516.61676181,0.00023986,2]
[315143179,1708888248472,-508.77920018,0.00023986,2]
[315143180,1708888248481,-500.0,0.00023986,2]
[315143181,1708888248491,-500.0,0.00023986,2]
[315143182,1708888248500,-500.0,0.00023986,2]
[315143183,1708888248510,-537.37,0.00023986,2]
[315143184,1708888248519,-514.03938763,0.00023986,2]
[315143185,1708888248528,-500.0,0.00023986,2]
[315143186,1708888248537,-506.25169934,0.00023986,2]
[315143187,1708888248546,-500.0,0.00023986,2]
[315143188,1708888248556,-500.0,0.00023986,2]
[315143189,1708888248565,-515.97701832,0.00023986,2]
[315143190,1708888248574,-558.43,0.00023986,2]
[315143191,1708888248583,-527.08,0.00023986,2]
[315143192,1708888248593,-500.0,0.00023986,2]
[315143193,1708888248602,-500.0,0.00023986,2]
[315143194,1708888248612,-500.0,0.00023986,2]
[315143195,1708888248621,-700.66,0.00023986,2]
[315143196,1708888248630,-500.0,0.00023986,2]
[315143197,1708888248639,-500.0,0.00023986,2]
[315143198,1708888248648,-515.4394698,0.00023986,2]
[315143199,1708888248658,-547.08,0.00023986,2]
[315143200,1708888248667,-500.0,0.00023986,2]
[315143201,1708888248676,-511.08266233,0.00023986,2]
[315143202,1708888248686,-738.34,0.00023986,2]
[315143203,1708888248695,-500.0,0.00023986,2]
[315143204,1708888248705,-500.0,0.00023986,2]
[315143205,1708888248714,-741.77,0.00023986,2]
[315143206,1708888248723,-500.0,0.00023986,2]
[315143207,1708888248732,-500.0,0.00023986,2]
[315143208,1708888248741,-537.27,0.00023986,2]
[315143209,1708888248751,-661.42,0.00023986,2]
[315143210,1708888248761,-500.0,0.00023986,2]
[315143211,1708888248770,-500.0,0.00023986,2]
[315143212,1708888248779,-748.69,0.00023986,2]
[315143213,1708888248788,-980.64,0.00023986,2]
[315143214,1708888248797,-1208.9,0.00023986,2]
[315143215,1708888248806,-500.0,0.00023986,2]
[315143216,1708888248815,-1862.71,0.00023986,2]
[315143217,1708888248824,-853.75,0.00023986,2]
[315143218,1708888248834,-221.78258636,0.00023986,2]
[315143219,1708888248843,-500.0,0.00023986,2]
[315143220,1708888248852,-500.0,0.00023986,2]
[315143221,1708888248862,-575.16,0.00023986,2]
[315143222,1708888248871,-524.91015703,0.00023986,2]
[315143223,1708888248880,-500.0,0.00023986,2]
[315143224,1708888248889,-472.66692369,0.00023986,2]
[315143225,1708888248900,-500.0,0.00023986,2]
[315143226,1708888248912,-500.0,0.00023986,2]
[315143227,1708888248921,-2117.57,0.00023986,2]
[315143228,1708888248930,-500.0,0.00023986,2]
[315143229,1708888248939,-500.0,0.00023986,2]
[315143230,1708888248949,-1545.6,0.00023986,2]
[315143231,1708888248958,-500.0,0.00023986,2]
[315143232,1708888248967,-500.0,0.00023986,2]
[315143233,1708888248977,-500.0,0.00023986,2]
[315143234,1708888248987,-500.0,0.00023986,2]
[315143235,1708888248996,-500.0,0.00023986,2]
[315143236,1708888249005,-500.0,0.00023986,2]
[315143237,1708888249014,-500.0,0.00023986,2]
[315143238,1708888249023,-500.0,0.00023986,2]
[315143239,1708888249032,-500.0,0.00023986,2]
[315143240,1708888249041,-500.0,0.00023986,2]
[315143241,1708888249050,-153.12757047,0.00023986,2]
[315143242,1708888249059,-206.27752174,0.00023986,2]
[315143243,1708888249068,-500.0,0.00023986,2]
[315143244,1708888249076,-664.88,0.00023986,2]
[315143245,1708888249086,-500.0,0.00023986,2]
[315143246,1708888249094,-500.0,0.00023986,2]
[315143247,1708888249103,-763.87,0.00023986,2]
[315143248,1708888249112,-975.43,0.00023986,2]
[315143249,1708888249121,-541.11437496,0.00023986,2]
[315143250,1708888249130,-500.0,0.00023986,2]
[315143251,1708888249139,-500.0,0.00023986,2]
[315143252,1708888249148,-500.0,0.00023986,2]
[315143253,1708888249157,-500.0,0.00023986,2]
[315143254,1708888249166,-500.0,0.00023986,2]
[315143255,1708888249175,-763.32,0.00023986,2]
[315143256,1708888249184,-1044.81,0.00023986,2]
[315143257,1708888249193,-500.0,0.00023986,2]
[315143258,1708888249203,-500.0,0.00023986,2]
[315143259,1708888249213,-628.45,0.00023986,2]
[315143260,1708888249222,-500.0,0.00023986,2]
[315143261,1708888249232,-500.0,0.00023986,2]
[315143262,1708888249240,-617.7,0.00023986,2]
[315143263,1708888249249,-500.0,0.00023986,2]
[315143264,1708888249259,-500.0,0.00023986,2]
[315143265,1708888249268,-500.0,0.00023986,2]
[315143266,1708888249277,-1541.56,0.00023986,2]
[315143267,1708888249286,-727.28,0.00023986,2]
[315143268,1708888249295,-597.9,0.00023986,2]
[315143269,1708888249305,-500.0,0.00023986,2]
[315143270,1708888249314,-670.49,0.00023986,2]
[315143271,1708888249323,-500.0,0.00023986,2]
[315143272,1708888249332,-650.36,0.00023986,2]
[315143273,1708888249342,-628.58,0.00023986,2]
[315143274,1708888249362,-500.53086732,0.00023987,2]
[315143275,1708888249371,-500.0,0.00023987,2]
[315143276,1708888249380,-503.50271052,0.00023987,2]
[315143277,1708888249389,-500.951538,0.00023987,2]
[315143278,1708888249398,-500.0,0.00023987,15]
[315143279,1708888249407,-505.5398234,0.00023987,2]
[315143280,1708888249416,-500.0,0.00023987,2]
[315143281,1708888249425,-199.61297718,0.00023987,2]
[315143282,1708888249434,-603.97119971,0.00023987,2]
[315143283,1708888249443,-186.94648833,0.00023987,2]
[315143284,1708888249452,-506.00444527,0.00023987,2]
[315143285,1708888249461,-502.05838835,0.00023987,2]
[315143286,1708888249470,-500.0,0.00023987,2]
[315143287,1708888249480,-506.4916733,0.00023987,2]
[315143288,1708888249489,-500.0,0.00023987,2]
[315143289,1708888249498,-185.44399756,0.00023987,2]
[315143290,1708888249509,-503.40422009,0.00023987,2]
[315143291,1708888249518,-500.0,0.00023987,2]
[315143292,1708888249527,-505.40427654,0.00023987,2]
[315143293,1708888249537,-500.0,0.00023987,2]
[315143294,1708888249546,-503.6294533,0.00023987,2]
[315143295,1708888249555,-490.38038612,0.00023987,2]